[Event "Titled Tuesday Blitz August 1 Late 2023"]
[White "Urbina Perez, Juan Antonio"]
[Black "Gertler, David"]
[WhiteFideId "2217368"]
[BlackFideId "2017377"]
[WhiteElo "2449"]
[BlackElo "2310"]
[Result "1-0"]
[Round "4"]
[TimeControl "180+1"]
[Date "2023.08.01"]
[WhiteClock "0:00:29"]
[BlackClock "0:00:01"]
[Board "157"]

1. d4 {[%clk 0:03:00]}  Nf6 {[%clk 0:02:59]} 2. c4 {[%clk 0:03:00]}  Nc6 {[%clk 0:02:59]} 3. Nf3 {[%clk 0:02:49]}  e6 {[%clk 0:02:59]} 4. a3 {[%clk 0:02:49]}  d6 {[%clk 0:02:59]} 5. Nc3 {[%clk 0:02:45]}  g6 {[%clk 0:03:00]} 6. g3 {[%clk 0:02:46]}  Bg7 {[%clk 0:03:00]} 7. Bg2 {[%clk 0:02:46]}  O-O {[%clk 0:03:01]} 8. O-O {[%clk 0:02:47]}  e5 {[%clk 0:02:50]} 9. dxe5 {[%clk 0:02:44]}  dxe5 {[%clk 0:02:50]} 10. Bg5 {[%clk 0:02:44]}  Qxd1 {[%clk 0:02:35]} 11. Rfxd1 {[%clk 0:02:45]}  h6 {[%clk 0:02:34]} 12. Bxf6 {[%clk 0:02:26]}  Bxf6 {[%clk 0:02:35]} 13. Nb5 {[%clk 0:02:22]}  Bd8 {[%clk 0:02:32]} 14. Nd2 {[%clk 0:02:21]}  Bf5 {[%clk 0:02:03]} 15. Bxc6 {[%clk 0:02:09]}  bxc6 {[%clk 0:02:04]} 16. Nc3 {[%clk 0:02:09]}  a5 {[%clk 0:01:58]} 17. Nde4 {[%clk 0:02:04]}  Be7 {[%clk 0:01:51]} 18. f3 {[%clk 0:02:01]}  a4 {[%clk 0:01:45]} 19. Rac1 {[%clk 0:01:54]}  Be6 {[%clk 0:01:39]} 20. Na2 {[%clk 0:01:51]}  f5 {[%clk 0:01:14]} 21. Nf2 {[%clk 0:01:48]}  Bc5 {[%clk 0:01:14]} 22. Kg2 {[%clk 0:01:48]}  Be3 {[%clk 0:01:11]} 23. Rc2 {[%clk 0:01:44]}  Rfd8 {[%clk 0:01:01]} 24. Rxd8+ {[%clk 0:01:43]}  Rxd8 {[%clk 0:01:02]} 25. Nb4 {[%clk 0:01:43]}  c5 {[%clk 0:00:20]} 26. Nbd3 {[%clk 0:01:41]}  Bd4 {[%clk 0:00:19]} 27. e3 {[%clk 0:00:54]}  Bxe3 {[%clk 0:00:17]} 28. Nxe5 {[%clk 0:00:55]}  Kg7 {[%clk 0:00:15]} 29. f4 {[%clk 0:00:50]}  Bd4 {[%clk 0:00:14]} 30. Nfd3 {[%clk 0:00:47]}  Rb8 {[%clk 0:00:13]} 31. Kf3 {[%clk 0:00:45]}  Rb3 {[%clk 0:00:13]} 32. Ke2 {[%clk 0:00:45]}  Kf6 {[%clk 0:00:10]} 33. Nf3 {[%clk 0:00:40]}  g5 {[%clk 0:00:08]} 34. fxg5+ {[%clk 0:00:38]}  hxg5 {[%clk 0:00:09]} 35. Nxd4 {[%clk 0:00:38]}  cxd4 {[%clk 0:00:10]} 36. Nc5 {[%clk 0:00:38]}  Re3+ {[%clk 0:00:08]} 37. Kf2 {[%clk 0:00:36]}  Re4 {[%clk 0:00:03]} 38. Rd2 {[%clk 0:00:29]}  Bxc4 {[%clk 0:00:03]} 39. Nxe4+ {[%clk 0:00:28]}  fxe4 {[%clk 0:00:01]} 40. Rxd4 {[%clk 0:00:29]} 1-0


[Site "https://www.chess.com"]

[Event "Titled Tuesday Blitz August 1 Late 2023"]
[White "szachmistrz2500"]
[Black "Schut, Han"]
[BlackFideId "1005561"]
[WhiteElo "2449"]
[BlackElo "2263"]
[Result "0-1"]
[Round "4"]
[TimeControl "180+1"]
[Date "2023.08.01"]
[WhiteClock "0:01:18"]
[BlackClock "0:00:40"]
[Board "158"]

1. Nf3 {[%clk 0:02:59]}  Nf6 {[%clk 0:02:58]} 2. g3 {[%clk 0:02:58]}  g6 {[%clk 0:02:59]} 3. Bg2 {[%clk 0:02:58]}  Bg7 {[%clk 0:03:00]} 4. O-O {[%clk 0:02:59]}  O-O {[%clk 0:03:00]} 5. d3 {[%clk 0:02:57]}  d5 {[%clk 0:03:00]} 6. Nbd2 {[%clk 0:02:56]}  c5 {[%clk 0:03:01]} 7. e4 {[%clk 0:02:56]}  Nc6 {[%clk 0:03:01]} 8. c3 {[%clk 0:02:54]}  h6 {[%clk 0:02:59]} 9. Qe2 {[%clk 0:02:54]}  Be6 {[%clk 0:02:58]} 10. h3 {[%clk 0:02:47]}  Kh7 {[%clk 0:02:56]} 11. Re1 {[%clk 0:02:47]}  Qc8 {[%clk 0:02:55]} 12. g4 {[%clk 0:02:44]}  b5 {[%clk 0:02:43]} 13. Nf1 {[%clk 0:02:43]}  dxe4 {[%clk 0:02:42]} 14. dxe4 {[%clk 0:02:42]}  Bc4 {[%clk 0:02:41]} 15. Qc2 {[%clk 0:02:39]}  Rd8 {[%clk 0:02:36]} 16. Ng3 {[%clk 0:02:29]}  Bd3 {[%clk 0:02:31]} 17. Qb3 {[%clk 0:02:29]}  Na5 {[%clk 0:02:21]} 18. Qxf7 {[%clk 0:02:27]}  Bc4 {[%clk 0:02:14]} 19. Qxe7 {[%clk 0:02:24]}  Nc6 {[%clk 0:02:14]} 20. Qxd8 {[%clk 0:02:17]}  Qxd8 {[%clk 0:02:12]} 21. g5 {[%clk 0:02:16]}  Ng8 {[%clk 0:02:06]} 22. Be3 {[%clk 0:02:11]}  Ne5 {[%clk 0:01:49]} 23. Nxe5 {[%clk 0:02:01]}  Bxe5 {[%clk 0:01:47]} 24. gxh6 {[%clk 0:01:58]}  Qc7 {[%clk 0:01:34]} 25. Rad1 {[%clk 0:01:47]}  Be6 {[%clk 0:01:26]} 26. Ne2 {[%clk 0:01:44]}  Nxh6 {[%clk 0:01:15]} 27. f4 {[%clk 0:01:44]}  Bg7 {[%clk 0:01:13]} 28. e5 {[%clk 0:01:44]}  Rd8 {[%clk 0:01:10]} 29. a3 {[%clk 0:01:40]}  Nf5 {[%clk 0:00:57]} 30. Bf2 {[%clk 0:01:38]}  Bb3 {[%clk 0:00:49]} 31. Rxd8 {[%clk 0:01:36]}  Qxd8 {[%clk 0:00:50]} 32. Bxc5 {[%clk 0:01:36]}  Nh4 {[%clk 0:00:48]} 33. Be4 {[%clk 0:01:26]}  Qc8 {[%clk 0:00:47]} 34. Kh2 {[%clk 0:01:22]}  Qxc5 {[%clk 0:00:46]} 35. Nd4 {[%clk 0:01:21]}  Bd5 {[%clk 0:00:43]} 36. Bd3 {[%clk 0:01:20]}  Nf3+ {[%clk 0:00:42]} 37. Nxf3 {[%clk 0:01:19]}  Bxf3 {[%clk 0:00:43]} 38. Rg1 {[%clk 0:01:18]}  Qf2+ {[%clk 0:00:40]} 0-1


[Site "https://www.chess.com"]

[Event "Titled Tuesday Blitz August 1 Late 2023"]
[White "Tqebuchava, Zurab"]
[Black "Polaczek, Richard"]
[WhiteFideId "13601113"]
[BlackFideId "200026"]
[WhiteElo "2268"]
[BlackElo "2436"]
[Result "1-0"]
[Round "4"]
[TimeControl "180+1"]
[Date "2023.08.01"]
[WhiteClock "0:00:02"]
[BlackClock "0:00:00"]
[Board "159"]

1. e4 {[%clk 0:03:00]}  Nf6 {[%clk 0:02:58]} 2. e5 {[%clk 0:03:00]}  Nd5 {[%clk 0:02:58]} 3. Nc3 {[%clk 0:03:01]}  Nxc3 {[%clk 0:02:57]} 4. dxc3 {[%clk 0:03:01]}  d6 {[%clk 0:02:56]} 5. exd6 {[%clk 0:03:01]}  exd6 {[%clk 0:02:53]} 6. Bc4 {[%clk 0:02:51]}  Be6 {[%clk 0:02:44]} 7. Bxe6 {[%clk 0:02:49]}  fxe6 {[%clk 0:02:43]} 8. Qh5+ {[%clk 0:02:40]}  g6 {[%clk 0:02:23]} 9. Qb5+ {[%clk 0:02:37]}  Nd7 {[%clk 0:02:23]} 10. Qxb7 {[%clk 0:02:33]}  Bg7 {[%clk 0:02:17]} 11. Nf3 {[%clk 0:02:04]}  O-O {[%clk 0:02:12]} 12. Qe4 {[%clk 0:01:57]}  Nc5 {[%clk 0:02:07]} 13. Qe2 {[%clk 0:01:55]}  Qf6 {[%clk 0:01:52]} 14. O-O {[%clk 0:01:50]}  e5 {[%clk 0:01:45]} 15. Be3 {[%clk 0:01:46]}  Ne6 {[%clk 0:01:44]} 16. Qc4 {[%clk 0:01:35]}  Kh8 {[%clk 0:01:41]} 17. Rad1 {[%clk 0:01:26]}  Qe7 {[%clk 0:01:29]} 18. Qd5 {[%clk 0:01:10]}  a6 {[%clk 0:01:11]} 19. c4 {[%clk 0:01:08]}  Rad8 {[%clk 0:00:59]} 20. c5 {[%clk 0:00:55]}  dxc5 {[%clk 0:00:57]} 21. Qc6 {[%clk 0:00:43]}  Nd4 {[%clk 0:00:52]} 22. Bxd4 {[%clk 0:00:30]}  cxd4 {[%clk 0:00:50]} 23. Qe4 {[%clk 0:00:30]}  Rf4 {[%clk 0:00:44]} 24. Qe2 {[%clk 0:00:29]}  e4 {[%clk 0:00:38]} 25. Nd2 {[%clk 0:00:28]}  Re8 {[%clk 0:00:16]} 26. Nc4 {[%clk 0:00:28]}  Qc5 {[%clk 0:00:15]} 27. b3 {[%clk 0:00:24]}  Ref8 {[%clk 0:00:14]} 28. Kh1 {[%clk 0:00:20]}  Qf5 {[%clk 0:00:12]} 29. f3 {[%clk 0:00:16]}  e3 {[%clk 0:00:08]} 30. Rd3 {[%clk 0:00:15]}  c5 {[%clk 0:00:07]} 31. Rfd1 {[%clk 0:00:15]}  Qh5 {[%clk 0:00:04]} 32. Qe1 {[%clk 0:00:09]}  Rh4 {[%clk 0:00:04]} 33. Qg3 {[%clk 0:00:09]}  Bh6 {[%clk 0:00:03]} 34. Qe5+ {[%clk 0:00:07]}  Qxe5 {[%clk 0:00:03]} 35. Nxe5 {[%clk 0:00:07]}  Bg7 {[%clk 0:00:03]} 36. Ng4 {[%clk 0:00:06]}  Re8 {[%clk 0:00:03]} 37. h3 {[%clk 0:00:05]}  Rh5 {[%clk 0:00:02]} 38. Nh2 {[%clk 0:00:04]}  Rg5 {[%clk 0:00:03]} 39. Re1 {[%clk 0:00:04]}  Rge5 {[%clk 0:00:03]} 40. Ng4 {[%clk 0:00:04]}  Bf8 {[%clk 0:00:02]} 41. Nf6 {[%clk 0:00:04]}  R8e6 {[%clk 0:00:02]} 42. Nd7 {[%clk 0:00:03]}  Rd5 {[%clk 0:00:02]} 43. Nxf8 {[%clk 0:00:03]}  Rf6 {[%clk 0:00:00]} 44. Nd7 {[%clk 0:00:02]} 1-0


[Site "https://www.chess.com"]

[Event "Titled Tuesday Blitz August 1 Late 2023"]
[White "Ardito, Andrew"]
[Black "Srdanovic, Jovana"]
[WhiteFideId "2033976"]
[BlackFideId "954810"]
[WhiteElo "2113"]
[BlackElo "2357"]
[Result "1-0"]
[Round "4"]
[TimeControl "180+1"]
[Date "2023.08.01"]
[WhiteClock "0:00:05"]
[BlackClock "0:00:11"]
[Board "162"]

1. e4 {[%clk 0:03:00]}  c6 {[%clk 0:03:00]} 2. d4 {[%clk 0:03:00]}  d5 {[%clk 0:03:00]} 3. e5 {[%clk 0:03:01]}  Na6 {[%clk 0:03:00]} 4. f4 {[%clk 0:02:55]}  Bf5 {[%clk 0:02:57]} 5. Nf3 {[%clk 0:02:53]}  e6 {[%clk 0:02:57]} 6. c3 {[%clk 0:02:47]}  Nc7 {[%clk 0:02:49]} 7. Bd3 {[%clk 0:02:46]}  Ne7 {[%clk 0:02:45]} 8. h3 {[%clk 0:02:44]}  g6 {[%clk 0:02:39]} 9. g4 {[%clk 0:02:40]}  Bxd3 {[%clk 0:02:37]} 10. Qxd3 {[%clk 0:02:41]}  h5 {[%clk 0:02:24]} 11. Rg1 {[%clk 0:02:36]}  Qd7 {[%clk 0:02:15]} 12. a4 {[%clk 0:02:29]}  O-O-O {[%clk 0:01:59]} 13. Na3 {[%clk 0:02:15]}  hxg4 {[%clk 0:01:58]} 14. hxg4 {[%clk 0:02:15]}  Bh6 {[%clk 0:01:46]} 15. Be3 {[%clk 0:02:03]}  Kb8 {[%clk 0:01:43]} 16. b4 {[%clk 0:01:58]}  Nc8 {[%clk 0:01:31]} 17. b5 {[%clk 0:01:55]}  cxb5 {[%clk 0:01:21]} 18. Nxb5 {[%clk 0:01:53]}  Nxb5 {[%clk 0:01:20]} 19. axb5 {[%clk 0:01:53]}  Nb6 {[%clk 0:01:20]} 20. Nd2 {[%clk 0:01:31]}  Rc8 {[%clk 0:01:13]} 21. Ra3 {[%clk 0:01:08]}  Nc4 {[%clk 0:01:10]} 22. Nxc4 {[%clk 0:01:07]}  Rxc4 {[%clk 0:01:11]} 23. Rh1 {[%clk 0:00:54]}  Bg7 {[%clk 0:01:08]} 24. Rxh8+ {[%clk 0:00:53]}  Bxh8 {[%clk 0:01:09]} 25. b6 {[%clk 0:00:25]}  axb6 {[%clk 0:00:46]} 26. Qb1 {[%clk 0:00:24]}  Qc6 {[%clk 0:00:38]} 27. Qa1 {[%clk 0:00:19]}  Kc7 {[%clk 0:00:37]} 28. Ra8 {[%clk 0:00:17]}  Bg7 {[%clk 0:00:36]} 29. Rg8 {[%clk 0:00:15]}  Rxc3 {[%clk 0:00:35]} 30. Rxg7 {[%clk 0:00:13]}  Rxe3+ {[%clk 0:00:35]} 31. Kf2 {[%clk 0:00:13]}  Rc3 {[%clk 0:00:17]} 32. Rxf7+ {[%clk 0:00:12]}  Kb8 {[%clk 0:00:17]} 33. Rf8+ {[%clk 0:00:09]}  Kc7 {[%clk 0:00:18]} 34. Qa8 {[%clk 0:00:07]}  Rc2+ {[%clk 0:00:18]} 35. Kg3 {[%clk 0:00:07]}  Qc3+ {[%clk 0:00:18]} 36. Kh4 {[%clk 0:00:08]}  Rh2+ {[%clk 0:00:17]} 37. Kg5 {[%clk 0:00:09]}  Kc6 {[%clk 0:00:07]} 38. Qc8+ {[%clk 0:00:08]}  Kb5 {[%clk 0:00:08]} 39. Qxc3 {[%clk 0:00:09]}  Rh5+ {[%clk 0:00:06]} 40. gxh5 {[%clk 0:00:08]}  gxh5 {[%clk 0:00:06]} 41. Kxh5 {[%clk 0:00:08]}  Ka4 {[%clk 0:00:06]} 42. Ra8+ {[%clk 0:00:08]}  Kb5 {[%clk 0:00:07]} 43. Qb3+ {[%clk 0:00:08]}  Kc6 {[%clk 0:00:06]} 44. Rc8+ {[%clk 0:00:09]}  Kd7 {[%clk 0:00:07]} 45. Qxb6 {[%clk 0:00:08]}  Kxc8 {[%clk 0:00:07]} 46. Qxe6+ {[%clk 0:00:09]}  Kc7 {[%clk 0:00:07]} 47. Qe7+ {[%clk 0:00:09]}  Kc6 {[%clk 0:00:08]} 48. Qd6+ {[%clk 0:00:09]}  Kb5 {[%clk 0:00:08]} 49. f5 {[%clk 0:00:10]}  Kc4 {[%clk 0:00:08]} 50. f6 {[%clk 0:00:10]}  Kxd4 {[%clk 0:00:09]} 51. f7 {[%clk 0:00:11]}  b5 {[%clk 0:00:09]} 52. f8=Q {[%clk 0:00:11]}  Ke4 {[%clk 0:00:10]} 53. Qb4+ {[%clk 0:00:09]}  d4 {[%clk 0:00:10]} 54. Qfc5 {[%clk 0:00:07]}  Kf3 {[%clk 0:00:09]} 55. Qcxd4 {[%clk 0:00:07]}  Kg2 {[%clk 0:00:10]} 56. Qg4+ {[%clk 0:00:07]}  Kf1 {[%clk 0:00:10]} 57. Qb1+ {[%clk 0:00:07]}  Kf2 {[%clk 0:00:10]} 58. Qbf5+ {[%clk 0:00:06]}  Ke1 {[%clk 0:00:10]} 59. Qg1+ {[%clk 0:00:06]}  Kd2 {[%clk 0:00:11]} 60. Qfb1 {[%clk 0:00:05]}  Kc3 {[%clk 0:00:11]} 61. Qe3+ {[%clk 0:00:05]}  Kc4 {[%clk 0:00:11]} 62. Qbe4# {[%clk 0:00:05]} 1-0


[Site "https://www.chess.com"]

[Event "Titled Tuesday Blitz August 1 Late 2023"]
[White "Yedidia, Daniel"]
[Black "Arias Igual, Alejandro"]
[WhiteFideId "30905907"]
[BlackFideId "2254905"]
[WhiteElo "2454"]
[BlackElo "2266"]
[Result "1-0"]
[Round "4"]
[TimeControl "180+1"]
[Date "2023.08.01"]
[WhiteClock "0:00:08"]
[BlackClock "0:00:00"]
[Board "166"]

1. d4 {[%clk 0:03:00]}  d5 {[%clk 0:02:56]} 2. c4 {[%clk 0:03:01]}  e6 {[%clk 0:02:56]} 3. Nc3 {[%clk 0:03:01]}  c5 {[%clk 0:02:55]} 4. cxd5 {[%clk 0:03:01]}  exd5 {[%clk 0:02:56]} 5. Nf3 {[%clk 0:03:00]}  Nc6 {[%clk 0:02:56]} 6. g3 {[%clk 0:03:00]}  Nf6 {[%clk 0:02:56]} 7. Bg2 {[%clk 0:03:00]}  Be7 {[%clk 0:02:56]} 8. O-O {[%clk 0:03:01]}  O-O {[%clk 0:02:56]} 9. Bg5 {[%clk 0:02:55]}  c4 {[%clk 0:02:55]} 10. Ne5 {[%clk 0:02:53]}  Be6 {[%clk 0:02:55]} 11. e3 {[%clk 0:02:37]}  h6 {[%clk 0:02:50]} 12. Bf4 {[%clk 0:02:34]}  Bf5 {[%clk 0:02:44]} 13. f3 {[%clk 0:02:24]}  Bh7 {[%clk 0:02:36]} 14. g4 {[%clk 0:02:21]}  Re8 {[%clk 0:02:17]} 15. Qd2 {[%clk 0:02:12]}  Bd6 {[%clk 0:01:55]} 16. Nxc6 {[%clk 0:01:59]}  bxc6 {[%clk 0:01:54]} 17. Bxd6 {[%clk 0:01:56]}  Qxd6 {[%clk 0:01:55]} 18. Rae1 {[%clk 0:01:56]}  Bd3 {[%clk 0:01:45]} 19. Rf2 {[%clk 0:01:57]}  c5 {[%clk 0:01:25]} 20. Bf1 {[%clk 0:01:08]}  Bg6 {[%clk 0:01:09]} 21. Na4 {[%clk 0:00:53]}  cxd4 {[%clk 0:01:03]} 22. exd4 {[%clk 0:00:45]}  Rxe1 {[%clk 0:00:52]} 23. Qxe1 {[%clk 0:00:46]}  Re8 {[%clk 0:00:37]} 24. Re2 {[%clk 0:00:47]}  Rxe2 {[%clk 0:00:33]} 25. Qxe2 {[%clk 0:00:47]}  Qf4 {[%clk 0:00:33]} 26. Qf2 {[%clk 0:00:38]}  Qc1 {[%clk 0:00:33]} 27. Kg2 {[%clk 0:00:33]}  Nd7 {[%clk 0:00:29]} 28. Nc3 {[%clk 0:00:31]}  Nf6 {[%clk 0:00:21]} 29. Nb5 {[%clk 0:00:25]}  a6 {[%clk 0:00:19]} 30. Nc7 {[%clk 0:00:19]}  Bc2 {[%clk 0:00:14]} 31. Nxa6 {[%clk 0:00:15]}  Qxb2 {[%clk 0:00:13]} 32. a4 {[%clk 0:00:11]}  Qc3 {[%clk 0:00:12]} 33. Nc5 {[%clk 0:00:09]}  Bg6 {[%clk 0:00:08]} 34. h4 {[%clk 0:00:09]}  h5 {[%clk 0:00:06]} 35. g5 {[%clk 0:00:09]}  Nh7 {[%clk 0:00:07]} 36. Nd7 {[%clk 0:00:09]}  Nf8 {[%clk 0:00:04]} 37. Ne5 {[%clk 0:00:09]}  Ne6 {[%clk 0:00:00]} 38. Nc6 {[%clk 0:00:08]} 1-0


[Site "https://www.chess.com"]

[Event "Titled Tuesday Blitz August 1 Late 2023"]
[White "Grave, Jacob Templen"]
[Black "Sala, Giulia"]
[WhiteFideId "1542656"]
[BlackFideId "2840451"]
[WhiteElo "2452"]
[BlackElo "2260"]
[Result "0-1"]
[Round "4"]
[TimeControl "180+1"]
[Date "2023.08.01"]
[WhiteClock "0:00:04"]
[BlackClock "0:00:34"]
[Board "167"]

1. e4 {[%clk 0:03:00]}  g6 {[%clk 0:03:00]} 2. Nf3 {[%clk 0:02:54]}  Bg7 {[%clk 0:02:59]} 3. d4 {[%clk 0:02:54]}  d6 {[%clk 0:02:52]} 4. Bc4 {[%clk 0:02:50]}  Nf6 {[%clk 0:02:41]} 5. Qe2 {[%clk 0:02:44]}  O-O {[%clk 0:02:37]} 6. h3 {[%clk 0:02:37]}  Nc6 {[%clk 0:02:18]} 7. O-O {[%clk 0:02:07]}  e5 {[%clk 0:02:17]} 8. dxe5 {[%clk 0:02:00]}  dxe5 {[%clk 0:02:15]} 9. Rd1 {[%clk 0:02:00]}  Qe7 {[%clk 0:02:15]} 10. c3 {[%clk 0:01:55]}  Be6 {[%clk 0:02:12]} 11. Bb5 {[%clk 0:01:50]}  Nd7 {[%clk 0:02:12]} 12. Bxc6 {[%clk 0:01:47]}  bxc6 {[%clk 0:02:13]} 13. Bg5 {[%clk 0:01:44]}  f6 {[%clk 0:02:11]} 14. Be3 {[%clk 0:01:43]}  h6 {[%clk 0:02:07]} 15. Nh4 {[%clk 0:01:33]}  Kh7 {[%clk 0:02:06]} 16. Nd2 {[%clk 0:01:24]}  Nb6 {[%clk 0:02:05]} 17. Nb3 {[%clk 0:01:23]}  Nc4 {[%clk 0:02:03]} 18. Bc5 {[%clk 0:01:21]}  Nd6 {[%clk 0:02:02]} 19. Nf3 {[%clk 0:01:16]}  Rfd8 {[%clk 0:01:58]} 20. Na5 {[%clk 0:01:15]}  Qe8 {[%clk 0:01:56]} 21. Qa6 {[%clk 0:01:11]}  f5 {[%clk 0:01:52]} 22. exf5 {[%clk 0:01:10]}  gxf5 {[%clk 0:01:52]} 23. Qxc6 {[%clk 0:00:57]}  e4 {[%clk 0:01:49]} 24. Nd4 {[%clk 0:00:56]}  Bxd4 {[%clk 0:01:41]} 25. Bxd4 {[%clk 0:00:53]}  Qxc6 {[%clk 0:01:39]} 26. Nxc6 {[%clk 0:00:51]}  Rg8 {[%clk 0:01:40]} 27. Kh2 {[%clk 0:00:43]}  e3 {[%clk 0:01:31]} 28. Bxe3 {[%clk 0:00:41]}  Rg6 {[%clk 0:01:26]} 29. Ne5 {[%clk 0:00:40]}  Rg7 {[%clk 0:01:24]} 30. Bf4 {[%clk 0:00:37]}  Rag8 {[%clk 0:01:24]} 31. g3 {[%clk 0:00:38]}  Ne4 {[%clk 0:01:25]} 32. Kg2 {[%clk 0:00:34]}  h5 {[%clk 0:01:21]} 33. h4 {[%clk 0:00:33]}  Nf6 {[%clk 0:01:19]} 34. Nf3 {[%clk 0:00:32]}  Bd5 {[%clk 0:01:18]} 35. Rd3 {[%clk 0:00:29]}  Be4 {[%clk 0:01:18]} 36. Re3 {[%clk 0:00:27]}  Nd5 {[%clk 0:01:18]} 37. Kg1 {[%clk 0:00:15]}  Nxf4 {[%clk 0:01:16]} 38. Ng5+ {[%clk 0:00:15]}  Rxg5 {[%clk 0:01:15]} 39. hxg5 {[%clk 0:00:16]}  Rxg5 {[%clk 0:01:12]} 40. Kf1 {[%clk 0:00:13]}  Nd5 {[%clk 0:01:09]} 41. Ree1 {[%clk 0:00:12]}  h4 {[%clk 0:01:07]} 42. Rad1 {[%clk 0:00:12]}  hxg3 {[%clk 0:01:04]} 43. fxg3 {[%clk 0:00:12]}  c6 {[%clk 0:00:59]} 44. Kf2 {[%clk 0:00:12]}  Rh5 {[%clk 0:00:57]} 45. Re2 {[%clk 0:00:09]}  Rh2+ {[%clk 0:00:53]} 46. Ke1 {[%clk 0:00:07]}  Rh1+ {[%clk 0:00:53]} 47. Kd2 {[%clk 0:00:07]}  Rxd1+ {[%clk 0:00:54]} 48. Kxd1 {[%clk 0:00:08]}  Bf3 {[%clk 0:00:54]} 49. Kd2 {[%clk 0:00:09]}  Bxe2 {[%clk 0:00:55]} 50. Kxe2 {[%clk 0:00:10]}  Kg6 {[%clk 0:00:55]} 51. Kf3 {[%clk 0:00:06]}  Nb6 {[%clk 0:00:53]} 52. b3 {[%clk 0:00:06]}  Kf6 {[%clk 0:00:52]} 53. c4 {[%clk 0:00:05]}  Ke5 {[%clk 0:00:50]} 54. g4 {[%clk 0:00:04]}  f4 {[%clk 0:00:48]} 55. g5 {[%clk 0:00:03]}  Kf5 {[%clk 0:00:44]} 56. g6 {[%clk 0:00:03]}  Kxg6 {[%clk 0:00:44]} 57. Kxf4 {[%clk 0:00:04]}  Kf6 {[%clk 0:00:45]} 58. Ke4 {[%clk 0:00:02]}  Ke6 {[%clk 0:00:45]} 59. Kd4 {[%clk 0:00:02]}  Nd7 {[%clk 0:00:44]} 60. b4 {[%clk 0:00:02]}  Kd6 {[%clk 0:00:44]} 61. a4 {[%clk 0:00:02]}  c5+ {[%clk 0:00:43]} 62. Kc3 {[%clk 0:00:03]}  cxb4+ {[%clk 0:00:42]} 63. Kxb4 {[%clk 0:00:04]}  Kc6 {[%clk 0:00:43]} 64. a5 {[%clk 0:00:03]}  Nc5 {[%clk 0:00:42]} 65. Ka3 {[%clk 0:00:02]}  Na6 {[%clk 0:00:42]} 66. Ka4 {[%clk 0:00:02]}  Kc5 {[%clk 0:00:43]} 67. Kb3 {[%clk 0:00:03]}  Nb8 {[%clk 0:00:42]} 68. Kc3 {[%clk 0:00:03]}  Nc6 {[%clk 0:00:43]} 69. a6 {[%clk 0:00:02]}  Kb6 {[%clk 0:00:43]} 70. Kb3 {[%clk 0:00:02]}  Kxa6 {[%clk 0:00:43]} 71. Ka4 {[%clk 0:00:03]}  Kb6 {[%clk 0:00:43]} 72. Kb3 {[%clk 0:00:04]}  Kc5 {[%clk 0:00:42]} 73. Kc3 {[%clk 0:00:04]}  Na5 {[%clk 0:00:42]} 74. Kb2 {[%clk 0:00:04]}  Nxc4+ {[%clk 0:00:42]} 75. Kb3 {[%clk 0:00:03]}  Kb5 {[%clk 0:00:43]} 76. Ka2 {[%clk 0:00:03]}  a5 {[%clk 0:00:43]} 77. Kb3 {[%clk 0:00:03]}  a4+ {[%clk 0:00:44]} 78. Ka2 {[%clk 0:00:04]}  Kb4 {[%clk 0:00:44]} 79. Kb1 {[%clk 0:00:04]}  a3 {[%clk 0:00:42]} 80. Ka1 {[%clk 0:00:05]}  Kb3 {[%clk 0:00:42]} 81. Kb1 {[%clk 0:00:04]}  Ne3 {[%clk 0:00:42]} 82. Ka1 {[%clk 0:00:05]}  Nc2+ {[%clk 0:00:38]} 83. Kb1 {[%clk 0:00:06]}  a2+ {[%clk 0:00:39]} 84. Kc1 {[%clk 0:00:07]}  a1=Q+ {[%clk 0:00:33]} 85. Kd2 {[%clk 0:00:08]}  Qd4+ {[%clk 0:00:33]} 86. Kc1 {[%clk 0:00:05]}  Nb4 {[%clk 0:00:33]} 87. Kb1 {[%clk 0:00:04]}  Qd1# {[%clk 0:00:34]} 0-1


[Site "https://www.chess.com"]

[Event "Titled Tuesday Blitz August 1 Late 2023"]
[White "Bazilius, Augustinas"]
[Black "Cardozo Munar, Carlos Eduardo"]
[WhiteFideId "12832251"]
[BlackFideId "4409477"]
[WhiteElo "2448"]
[BlackElo "2248"]
[Result "0-1"]
[Round "4"]
[TimeControl "180+1"]
[Date "2023.08.01"]
[WhiteClock "0:00:00"]
[BlackClock "0:00:13"]
[Board "169"]

1. d4 {[%clk 0:03:00]}  d5 {[%clk 0:03:00]} 2. c4 {[%clk 0:03:01]}  e5 {[%clk 0:02:54]} 3. dxe5 {[%clk 0:03:01]}  d4 {[%clk 0:02:55]} 4. Nf3 {[%clk 0:03:02]}  Nc6 {[%clk 0:02:54]} 5. Nbd2 {[%clk 0:03:01]}  Bg4 {[%clk 0:02:49]} 6. g3 {[%clk 0:03:00]}  Nge7 {[%clk 0:02:49]} 7. Bg2 {[%clk 0:03:00]}  Ng6 {[%clk 0:02:49]} 8. O-O {[%clk 0:02:50]}  Qd7 {[%clk 0:02:47]} 9. a3 {[%clk 0:02:12]}  h5 {[%clk 0:02:45]} 10. h4 {[%clk 0:02:07]}  O-O-O {[%clk 0:02:39]} 11. b4 {[%clk 0:02:07]}  Ncxe5 {[%clk 0:02:39]} 12. c5 {[%clk 0:01:52]}  Bh3 {[%clk 0:02:33]} 13. Nxe5 {[%clk 0:01:44]}  Nxe5 {[%clk 0:02:32]} 14. Nb3 {[%clk 0:01:28]}  Bxg2 {[%clk 0:02:14]} 15. Kxg2 {[%clk 0:01:27]}  d3 {[%clk 0:02:12]} 16. exd3 {[%clk 0:01:01]}  Nxd3 {[%clk 0:02:09]} 17. Be3 {[%clk 0:00:52]}  Be7 {[%clk 0:02:03]} 18. Qf3 {[%clk 0:00:46]}  Ne5 {[%clk 0:01:57]} 19. Qe4 {[%clk 0:00:45]}  Ng4 {[%clk 0:01:49]} 20. Rad1 {[%clk 0:00:40]}  Qe6 {[%clk 0:01:01]} 21. Qxe6+ {[%clk 0:00:37]}  fxe6 {[%clk 0:01:02]} 22. Bd4 {[%clk 0:00:30]}  Bf6 {[%clk 0:00:56]} 23. Rfe1 {[%clk 0:00:26]}  e5 {[%clk 0:00:51]} 24. Bc3 {[%clk 0:00:19]}  Rhe8 {[%clk 0:00:44]} 25. Rxd8+ {[%clk 0:00:11]}  Kxd8 {[%clk 0:00:44]} 26. f3 {[%clk 0:00:11]}  Nh6 {[%clk 0:00:44]} 27. Nd2 {[%clk 0:00:10]}  Kd7 {[%clk 0:00:34]} 28. Nc4 {[%clk 0:00:10]}  Nf7 {[%clk 0:00:32]} 29. Ne3 {[%clk 0:00:05]}  Kc6 {[%clk 0:00:28]} 30. a4 {[%clk 0:00:04]}  a6 {[%clk 0:00:27]} 31. Rd1 {[%clk 0:00:04]}  e4 {[%clk 0:00:19]} 32. Bxf6 {[%clk 0:00:04]}  exf3+ {[%clk 0:00:18]} 33. Kxf3 {[%clk 0:00:04]}  gxf6 {[%clk 0:00:19]} 34. Rf1 {[%clk 0:00:03]}  Ne5+ {[%clk 0:00:19]} 35. Ke2 {[%clk 0:00:03]}  Re6 {[%clk 0:00:19]} 36. Kd2 {[%clk 0:00:02]}  b6 {[%clk 0:00:17]} 37. Kc3 {[%clk 0:00:03]}  a5 {[%clk 0:00:16]} 38. Nc2 {[%clk 0:00:03]}  axb4+ {[%clk 0:00:16]} 39. Nxb4+ {[%clk 0:00:03]}  Kxc5 {[%clk 0:00:16]} 40. Rc1 {[%clk 0:00:03]}  Kd6 {[%clk 0:00:16]} 41. Rd1+ {[%clk 0:00:03]}  Ke7 {[%clk 0:00:16]} 42. Nd5+ {[%clk 0:00:04]}  Kf7 {[%clk 0:00:16]} 43. Nxc7 {[%clk 0:00:04]}  Rc6+ {[%clk 0:00:16]} 44. Kb4 {[%clk 0:00:05]}  Rxc7 {[%clk 0:00:17]} 45. Kb5 {[%clk 0:00:06]}  Rc4 {[%clk 0:00:15]} 46. Re1 {[%clk 0:00:04]}  Rg4 {[%clk 0:00:15]} 47. Kxb6 {[%clk 0:00:05]}  Rxa4 {[%clk 0:00:15]} 48. Kc5 {[%clk 0:00:04]}  Rg4 {[%clk 0:00:15]} 49. Re3 {[%clk 0:00:04]}  Kg6 {[%clk 0:00:15]} 50. Kd6 {[%clk 0:00:04]}  Kf5 {[%clk 0:00:14]} 51. Ke7 {[%clk 0:00:05]}  Rd4 {[%clk 0:00:14]} 52. Re1 {[%clk 0:00:05]}  Kg4 {[%clk 0:00:14]} 53. Kxf6 {[%clk 0:00:04]}  Nf3 {[%clk 0:00:14]} 54. Re8 {[%clk 0:00:02]}  Rd6+ {[%clk 0:00:14]} 55. Kg7 {[%clk 0:00:02]}  Kxg3 {[%clk 0:00:14]} 56. Re4 {[%clk 0:00:02]}  Rd5 {[%clk 0:00:13]} 57. Kh6 {[%clk 0:00:02]}  Nxh4 {[%clk 0:00:13]} 58. Re3+ {[%clk 0:00:02]}  Kg4 {[%clk 0:00:13]} 59. Re4+ {[%clk 0:00:02]}  Kg3 {[%clk 0:00:13]} 60. Re3+ {[%clk 0:00:02]}  Kf4 {[%clk 0:00:14]} 61. Rh3 {[%clk 0:00:02]}  Kg4 {[%clk 0:00:12]} 62. Re3 {[%clk 0:00:02]}  Nf5+ {[%clk 0:00:13]} 63. Kh7 {[%clk 0:00:00]}  Nxe3 {[%clk 0:00:13]} 0-1


[Site "https://www.chess.com"]